bitfinex/quotes_ETHUSD_20250622
["timestamp","ask_amount","ask_price","bid_price","bid_amount"]
[1750619701532,10.0,2184.1,2183.6,1.29445404]
[1750619701737,10.0,2184.1,2183.2,2.33]
[1750619701738,0.0624,2183.8,2183.2,2.33]
[1750619701968,0.8744,2183.5,2183.0,4.58074151]
[1750619702148,0.0624,2183.4,2183.0,4.58074151]
[1750619702536,0.0624,2183.4,2182.9,2.33]
[1750619702537,0.0624,2183.4,2182.9,6.91096631]
[1750619702732,0.0624,2183.4,2182.9,2.33]
[1750619702967,0.0624,2183.4,2183.0,4.58083097]
[1750619703172,10.812,2183.5,2182.8,11.003]
[1750619703368,0.0624,2183.3,2182.8,2.33]
[1750619703539,0.0624,2183.3,2182.8,6.91121844]
[1750619703861,8.933,2183.4,2182.8,6.91121844]
[1750619704056,0.0624,2183.3,2183.0,4.58081773]
[1750619704261,0.0624,2183.3,2182.9,4.58096256]
[1750619704450,8.9954,2183.4,2183.0,4.62656521]
[1750619704653,8.9954,2183.4,2183.1,4.58061372]
[1750619704974,8.933,2183.4,2183.0,4.5807562]
[1750619705149,8.9954,2183.4,2182.8,6.96857947]
[1750619705352,8.9954,2183.4,2183.0,4.5807525]
[1750619705550,0.0624,2183.3,2183.0,4.5807525]
[1750619705872,8.933,2183.4,2182.7,0.2257423]
[1750619706174,10.8258,2183.2,2182.7,0.2257423]
[1750619706347,0.0624,2183.1,2182.7,0.2257423]
[1750619706546,0.0624,2182.9,2182.7,0.2257423]
[1750619707169,0.0624,2182.9,2182.7,0.1257423]
[1750619708274,1.4382,2182.8,2182.7,0.1257423]
[1750619708675,0.8882,2182.8,2182.7,0.1257423]
[1750619708999,0.0624,2183.5,2183.1,4.5806422]
[1750619709177,0.8258,2183.5,2182.8,0.7989]
[1750619709497,0.0624,2183.4,2182.8,5.38005728]
[1750619709667,0.0624,2183.4,2182.7,4.70711192]
[1750619709846,0.0624,2183.4,2182.8,4.58116593]
[1750619710258,0.8089,2183.2,2182.7,5.71588705]
[1750619710452,0.8089,2183.2,2182.7,4.70713015]
[1750619711066,0.8089,2183.2,2182.7,4.75302694]
[1750619711272,0.0624,2183.1,2182.7,0.1257423]
[1750619711985,0.8089,2183.2,2182.7,0.1257423]
[1750619712347,0.0624,2183.1,2182.8,4.58112231]
[1750619713007,0.0624,2183.1,2182.7,4.7071155]
[1750619713294,0.0624,2183.1,2182.8,4.58120452]
[1750619713703,0.0624,2183.1,2182.7,0.1257423]
[1750619713906,0.0624,2183.1,2182.8,4.58117572]
[1750619714069,0.8713,2183.2,2182.8,5.51001437]
[1750619714397,0.8089,2183.2,2182.9,4.58103832]
[1750619714561,0.8089,2183.2,2182.9,4.58106189]
[1750619715563,0.0624,2183.1,2182.8,5.51006517]
[1750619716178,0.8713,2183.2,2182.9,4.58105586]
[1750619717662,0.8713,2183.2,2182.9,1.02169034]
[1750619717976,0.8713,2183.2,2182.9,4.58095737]
[1750619718497,0.8713,2183.2,2183.0,4.58083437]
[1750619718668,0.8713,2183.2,2182.9,4.58094688]
[1750619719480,0.8089,2183.2,2182.9,4.58094688]
[1750619719681,0.8089,2183.2,2182.9,4.58096087]
[1750619719972,0.0624,2183.1,2182.7,0.1257423]
[1750619720168,0.0624,2183.1,2182.7,4.7071992]
[1750619720886,10.27393185,2183.1,2182.7,0.1257423]
[1750619721196,10.21153185,2183.1,2182.7,0.1257423]
[1750619721377,0.0624,2183.0,2182.7,0.1257423]
[1750619721961,10.21153185,2183.1,2182.7,0.1257423]
[1750619722160,8.1614,2183.0,2182.7,0.1257423]
[1750619722775,0.8098,2182.8,2182.7,0.1257423]
[1750619724026,11.3598,2182.8,2182.7,0.1257423]
[1750619724514,0.7505,2182.6,2181.5,4.58390252]
[1750619724818,0.0593,2182.1,2181.6,4.58364278]
[1750619725121,8.095,2182.0,2181.6,4.58377905]
[1750619725409,8.1543,2182.0,2181.6,4.43377905]
[1750619725881,0.8647,2181.9,2181.5,6.89091251]
[1750619726077,0.8647,2181.9,2181.6,4.5837695]
[1750619726283,0.8647,2181.9,2181.6,2.307]
[1750619726885,0.8647,2181.9,2181.7,18.0]
[1750619728918,8.095,2182.0,2181.7,22.5834081]
[1750619729520,8.095,2182.0,2181.8,4.58326026]
[1750619730132,10.7924,2182.4,2181.8,2.99319873]
[1750619730438,10.7924,2182.4,2182.0,4.58283651]
[1750619730800,10.8517,2182.4,2182.0,4.58283651]
[1750619731182,0.0593,2182.3,2181.9,4.58308765]
[1750619731417,0.0593,2182.3,2181.8,2.307]
[1750619731623,0.7623,2181.9,2181.4,2.307]
[1750619731783,0.0593,2181.8,2181.3,2.307]
[1750619731987,8.8503,2181.9,2181.3,2.307]
[1750619731988,8.9096,2181.9,2181.5,4.58390068]
[1750619732187,8.9096,2181.9,2181.3,6.89135752]
[1750619732188,8.9096,2181.9,2181.4,4.5841365]
[1750619732389,0.0593,2181.8,2181.4,4.5841365]
[1750619732585,8.8503,2181.9,2181.1,11.007]
[1750619732785,0.0593,2181.8,2181.4,4.58418976]
[1750619734126,0.0593,2181.8,2181.2,6.89155768]
[1750619734330,0.0593,2181.8,2181.3,4.58434525]
[1750619734517,0.0593,2181.8,2181.4,4.58401861]
[1750619734832,8.8503,2181.9,2181.2,2.307]
[1750619735025,8.8503,2181.9,2181.4,4.58419804]
[1750619735235,8.8503,2181.9,2181.2,6.89162974]
[1750619735236,8.8503,2181.9,2181.3,4.58432884]
[1750619735905,0.8407,2181.7,2181.1,15.5917273]
[1750619736108,0.0593,2181.6,2181.2,6.89159716]
[1750619736429,0.0593,2181.6,2181.2,2.307]
[1750619736635,0.7814,2181.7,2181.1,15.59173217]
[1750619736803,0.0593,2181.6,2181.1,11.007]
[1750619737001,0.0593,2181.4,2181.1,11.007]
[1750619737501,8.8634,2181.5,2181.1,11.007]
[1750619737690,0.0593,2181.3,2180.9,2.307]
[1750619737895,0.0593,2181.3,2181.0,4.58493445]
[1750619738298,0.0593,2181.3,2180.9,2.307]
[1750619738805,0.0593,2181.3,2180.9,6.89225649]
[1750619739026,0.7892,2181.3,2180.9,2.307]
[1750619739217,0.0593,2181.2,2180.8,4.58536007]
[1750619739525,0.0593,2181.2,2180.9,2.307]
[1750619739695,0.0593,2181.2,2180.7,4.58567386]
[1750619739696,0.0593,2181.1,2180.7,4.58559251]
[1750619739898,0.0593,2181.1,2180.8,2.307]
[1750619740196,0.0593,2181.2,2180.8,6.89240592]
[1750619740434,0.0593,2181.2,2180.8,2.307]
[1750619740594,0.7892,2181.3,2180.8,6.89245878]
[1750619740923,0.0593,2181.2,2180.8,6.89245878]
[1750619741101,0.7892,2181.3,2180.8,2.307]
[1750619741306,0.6093,2181.2,2180.6,4.81152686]
[1750619741622,0.0593,2181.0,2180.6,0.2257423]
[1750619742024,0.0593,2181.0,2180.7,4.58555624]
[1750619742226,0.0593,2181.0,2180.6,4.81152089]
[1750619742594,0.0593,2181.0,2180.7,4.5856403]
[1750619742798,0.7934,2181.1,2180.8,4.58527963]
[1750619743000,0.7934,2181.1,2180.8,4.48527963]
[1750619743198,0.7934,2181.1,2181.0,4.58505272]
[1750619743393,0.7934,2181.1,2180.7,3.30521612]
[1750619743394,0.7934,2181.1,2180.9,4.58517841]
[1750619743594,0.8156,2181.3,2180.8,4.64287473]
[1750619743797,0.0593,2181.2,2180.8,4.58537473]
[1750619744108,0.7563,2181.6,2181.0,4.58491857]
[1750619744307,0.7563,2181.6,2181.1,0.0575]
[1750619744529,0.7563,2181.6,2181.2,4.58448333]
[1750619744844,0.7563,2181.6,2181.3,2.308]
[1750619745048,0.8156,2181.6,2181.3,2.308]
[1750619745400,0.0593,2181.4,2180.8,4.58547322]
[1750619745618,0.0593,2181.2,2180.9,2.308]
[1750619746007,0.8229,2181.4,2180.9,2.308]
[1750619746211,0.8229,2181.4,2181.0,4.58488907]
[1750619746608,0.8229,2181.4,2180.9,2.308]
[1750619746609,0.8822,2181.4,2180.9,2.308]
[1750619746933,0.0593,2181.3,2180.9,2.308]
[1750619747436,0.8229,2181.2,2180.9,2.308]
[1750619748221,0.8229,2181.2,2180.6,0.2257423]
[1750619748531,0.8229,2181.2,2180.6,0.79373088]
[1750619748840,8.8929,2181.2,2180.6,2.5337423]
[1750619749235,0.0593,2181.1,2180.6,2.5337423]
[1750619749616,0.0593,2181.1,2180.6,7.11961275]
[1750619750152,0.0593,2181.1,2180.6,2.5337423]
[1750619750373,8.8929,2181.2,2180.6,0.2257423]
[1750619750518,0.0593,2181.1,2180.6,0.2257423]
[1750619750721,0.0593,2181.1,2180.6,2.5337423]
[1750619750920,0.0593,2181.1,2180.7,4.58564416]
[1750619751217,8.8929,2181.2,2180.6,2.5337423]
[1750619751654,8.8929,2181.2,2180.6,0.2257423]
[1750619751655,0.0593,2181.0,2180.6,0.2257423]
[1750619751819,0.0593,2180.9,2180.6,0.2257423]
[1750619752015,0.7535,2181.0,2180.6,0.2257423]
[1750619752339,0.0578,2180.7,2180.6,0.2257423]
[1750619752651,0.7535,2180.8,2180.6,0.2257423]
[1750619752962,8.066,2180.9,2180.6,4.869111]
[1750619753158,0.7535,2181.0,2180.7,4.58551937]
[1750619753333,0.7535,2181.0,2180.8,4.58535604]
[1750619753734,0.7535,2181.2,2180.8,7.87693937]
[1750619754128,0.7535,2181.2,2180.9,4.58524723]
[1750619754343,0.7535,2181.2,2180.9,4.64264886]
[1750619755161,0.7535,2181.2,2180.9,0.0575]
[1750619755464,0.7535,2181.2,2180.8,7.8194256]
[1750619755756,0.7535,2181.2,2180.9,2.284]
[1750619756666,1.42878071,2181.2,2180.6,0.9846423]
[1750619756957,0.7535,2181.2,2180.7,4.64304028]
[1750619757160,0.7535,2181.2,2180.9,4.58523324]
[1750619757362,0.7535,2181.2,2180.8,4.58539116]
[1750619757559,0.7535,2181.2,2180.7,4.64307008]
[1750619757856,0.7535,2181.2,2180.9,4.58520518]
[1750619758260,0.7567,2181.5,2181.0,0.04584951]
[1750619758459,1.0004633,2181.7,2181.3,4.58432226]
[1750619758661,0.7609,2181.7,2181.3,4.58432226]
[1750619758848,0.7609,2181.7,2181.1,2.3415]
[1750619758849,8.059,2181.9,2181.5,4.58387979]
[1750619759065,0.7609,2181.9,2181.5,0.04583689]
[1750619759233,0.7609,2181.9,2181.6,4.58365005]
[1750619759858,0.7609,2181.9,2181.6,4.58379171]
[1750619760041,0.7609,2181.9,2181.6,6.86779171]
[1750619760364,0.7609,2182.1,2181.7,4.58354733]
[1750619760566,0.7609,2182.1,2181.8,4.58332714]
[1750619760867,10.7609,2182.1,2181.7,4.68679843]
[1750619761589,10.7609,2182.1,2181.6,6.86769249]
[1750619761590,10.8187,2182.1,2181.6,6.86769249]
[1750619761770,10.8187,2182.1,2181.6,6.86779083]
[1750619762560,10.8187,2182.1,2181.7,4.58356594]
[1750619762762,10.7609,2182.1,2181.7,4.68689712]
[1750619762960,0.7609,2182.1,2181.8,4.58336145]
[1750619763168,0.7609,2182.1,2181.7,4.68679723]
[1750619763665,0.7609,2182.1,2181.8,4.58336492]
[1750619763871,0.8187,2182.1,2181.6,6.86768053]
[1750619764064,0.8187,2182.1,2181.5,4.58388539]
[1750619764065,0.0578,2182.0,2181.5,4.58388539]
[1750619764264,0.0578,2182.0,2181.6,12.284]
[1750619764563,0.0578,2182.0,2181.6,16.8677696]
[1750619764873,0.7609,2182.1,2181.8,4.58323674]
[1750619765183,0.7609,2182.1,2181.7,4.68681207]
[1750619765707,0.0578,2182.4,2181.7,4.68681207]
[1750619765708,0.7687,2182.4,2181.8,0.0575]
[1750619765905,0.0578,2182.1,2181.5,0.8207]
[1750619766209,0.8135,2182.0,2181.6,2.284]
[1750619766374,0.0578,2181.9,2181.6,2.284]
[1750619767793,0.0578,2181.9,2181.5,6.86799832]
[1750619767979,0.0578,2181.9,2181.6,4.58378616]
[1750619768384,0.0578,2181.9,2181.5,6.86791514]
[1750619769106,0.0578,2181.9,2181.6,4.58377761]
[1750619769411,10.8135,2182.0,2181.7,4.58340773]
[1750619769611,0.8713,2182.4,2181.8,0.8207]
[1750619769812,0.8135,2182.2,2181.4,5.40486213]
[1750619770101,8.1018,2182.1,2181.6,4.58362301]
[1750619770260,8.1018,2182.1,2181.7,4.58347397]
[1750619770462,8.044,2182.1,2181.6,4.58369788]
[1750619770788,8.1018,2182.1,2181.7,4.5835614]
[1750619771859,8.1018,2182.1,2181.5,2.284]
[1750619772062,0.0578,2181.9,2181.4,6.86809574]
[1750619772454,0.8229,2181.9,2181.3,4.58430917]
[1750619772991,0.8807,2181.9,2181.3,4.58430917]
[1750619773215,0.8807,2181.9,2181.4,4.5842049]
[1750619773514,0.8229,2181.9,2181.4,4.5842049]
[1750619773699,0.8229,2181.9,2181.3,4.58432913]
[1750619774111,0.0578,2181.8,2181.3,4.58432913]
[1750619774311,0.8231,2181.8,2181.3,6.86832913]
[1750619774714,0.0578,2181.5,2181.0,4.58504179]
[1750619774883,0.0578,2181.3,2180.9,2.284]
[1750619775222,0.8514,2181.0,2180.6,7.09553359]
[1750619775783,0.7936,2181.0,2180.7,4.58567049]
[1750619776420,0.7936,2181.0,2180.9,4.58526296]
[1750619776632,8.038,2181.3,2180.9,4.58526296]
[1750619776821,10.0,2181.5,2180.9,0.9629169]
[1750619776996,10.0,2181.5,2181.1,4.58473856]
[1750619777316,10.0,2181.5,2181.3,4.58431095]
[1750619777519,10.0,2181.5,2181.4,4.58421197]
[1750619777822,10.0,2181.6,2181.3,4.58442213]
[1750619778821,10.0,2181.6,2181.3,0.04583997]
[1750619779148,10.0,2181.6,2181.1,5.4477617]
[1750619779318,10.0,2181.6,2181.2,5.17507142]
[1750619779522,10.0,2181.6,2181.2,7.45907142]
[1750619779819,10.0,2181.6,2181.3,0.0575]
[1750619780025,10.0,2181.6,2181.4,4.58410387]
[1750619780400,0.7936,2181.7,2181.2,7.41334226]
[1750619780603,10.54476242,2182.1,2181.3,8.032]
[1750619781234,10.54476242,2182.1,2181.3,12.61640709]
[1750619781439,10.54476242,2182.1,2181.4,4.64320179]
[1750619781599,10.54476242,2182.1,2181.4,6.90520179]
[1750619782202,7.91,2182.1,2181.2,0.54477617]
[1750619782402,7.91,2182.1,2181.2,10.89647617]
[1750619782695,0.0613,2182.0,2181.2,5.18800096]
[1750619782924,10.0,2182.0,2181.3,2.262]
[1750619783122,0.0613,2181.9,2181.3,6.84642]
[1750619783739,0.7572,2181.8,2181.3,6.84642]
[1750619783897,0.8185,2181.8,2181.3,6.90512]
[1750619786003,10.0,2182.0,2181.3,2.3207]
[1750619786302,10.0,2182.0,2181.4,5.61917758]
[1750619786507,10.0,2182.0,2181.6,0.0587]
[1750619786799,0.7572,2182.1,2181.6,4.64238018]
[1750619787109,0.7572,2182.1,2181.7,0.0587]
[1750619787441,0.0613,2182.0,2181.6,8.026]
[1750619788132,10.194,2182.5,2181.6,12.66848647]
[1750619788332,10.194,2182.5,2181.7,4.58347945]
[1750619788523,10.194,2182.5,2181.6,14.03874539]
[1750619788832,10.194,2182.5,2181.7,2.262]
[1750619789228,10.194,2182.5,2181.7,6.84556585]
[1750619789533,10.194,2182.5,2181.8,4.58332462]
[1750619789731,10.194,2182.5,2181.9,0.0587]
[1750619790236,10.0,2182.4,2181.9,0.0587]
[1750619790811,10.0613,2182.4,2181.7,2.3207]
[1750619791200,10.0613,2182.4,2181.7,0.0587]
[1750619791201,0.5803,2182.3,2181.7,0.0587]
[1750619791399,0.0803,2182.3,2181.7,0.0587]
[1750619791815,0.0803,2182.3,2181.7,4.64208144]
[1750619792298,0.0803,2182.3,2181.7,4.68791185]
[1750619792500,0.0803,2182.3,2181.8,4.58322718]
[1750619792702,0.0803,2182.3,2181.7,4.58347791]
[1750619793003,0.0803,2182.3,2181.8,0.0587]
[1750619793217,0.0803,2182.3,2181.8,4.64204942]
[1750619793542,0.0803,2182.3,2181.9,0.0587]
[1750619794057,2.3233,2182.9,2182.2,4.64107184]
[1750619794365,10.21646678,2182.9,2182.2,4.64112427]
[1750619794561,10.0803,2182.8,2182.2,6.59139899]
[1750619796105,7.73906346,2182.8,2182.2,6.59139899]
[1750619796407,10.21646678,2182.9,2182.3,5.38068653]
[1750619796600,10.21646678,2182.9,2182.3,0.7985]
[1750619796852,10.21646678,2182.9,2182.2,12.28497472]
[1750619797154,10.21646678,2182.7,2182.3,0.0587]
[1750619797706,10.21646678,2182.7,2182.2,0.0587]
[1750619798103,10.0,2182.6,2182.1,5.38122777]
[1750619798339,10.0,2182.6,2182.1,15.70104968]
[1750619798650,10.0,2182.6,2182.2,0.0587]
[1750619799206,10.0,2182.6,2182.1,5.38122777]
[1750619799369,10.0,2182.6,2182.1,7.70192777]
[1750619799518,10.0,2182.6,2182.2,0.0587]
[1750619800660,10.27776678,2182.3,2181.8,0.0587]
[1750619801031,10.21646678,2182.1,2181.7,0.7659]
[1750619801234,10.21646678,2182.1,2181.6,4.58369394]
[1750619801432,0.0613,2182.3,2181.7,6.60338255]
[1750619801433,10.27776678,2182.3,2181.7,6.60338255]
[1750619801762,10.27776678,2182.3,2181.7,6.66211011]
[1750619801763,10.21646678,2182.3,2181.7,6.66211011]
[1750619802065,10.21646678,2182.3,2181.7,2.01989841]
[1750619802218,10.21646678,2182.3,2181.7,4.58352852]
[1750619802614,10.21646678,2182.3,2181.7,4.58356662]
[1750619803155,10.55,2182.6,2181.6,6.90432716]
[1750619803156,10.27776678,2182.1,2181.6,6.90432716]
[1750619803354,10.21646678,2182.1,2181.7,4.64215829]
[1750619803717,10.71646678,2182.1,2181.7,4.64215829]
[1750619804059,0.5,2182.1,2181.7,6.66779628]
[1750619804767,0.5,2182.1,2181.7,2.08433799]
[1750619804920,0.5,2182.1,2181.7,6.66791165]
[1750619805455,10.27776678,2182.3,2181.7,2.08433799]
[1750619805754,8.007,2182.4,2181.5,5.34529659]
[1750619805755,10.27776678,2182.1,2181.5,5.34529659]
[1750619806641,10.27776678,2182.1,2181.6,4.583582]
[1750619806852,10.27776678,2182.3,2181.6,4.58365039]
[1750619807054,10.27776678,2182.3,2181.7,4.58356458]
[1750619808730,10.21646678,2182.3,2181.8,4.58324128]
[1750619809051,10.21646678,2182.3,2181.5,3.0233]
[1750619809052,0.0613,2182.2,2181.7,4.58346842]
[1750619811236,0.0613,2182.2,2181.7,4.64216842]
[1750619811969,10.21646678,2181.9,2181.1,0.0587]
[1750619812171,10.0,2181.3,2180.9,0.7763]
[1750619812375,10.21646678,2181.2,2180.6,3.3018423]
[1750619812876,10.21646678,2181.2,2180.6,7.88770682]
[1750619813248,10.21646678,2181.2,2180.6,5.64570682]
[1750619813568,10.21646678,2181.2,2180.8,0.0578]
[1750619813764,10.06,2181.3,2180.8,0.0578]
[1750619815065,10.06,2181.3,2180.9,18.0]
[1750619816285,10.0,2181.3,2180.7,4.58566551]
[1750619816477,10.0,2181.3,2180.8,0.55877078]
[1750619817202,10.21646678,2181.1,2180.6,1.0020423]
[1750619817496,10.06,2181.3,2180.6,1.0020423]
[1750619817497,20.27646678,2181.3,2180.6,5.58781632]
[1750619818008,20.27646678,2181.3,2180.7,4.58565736]
[1750619818956,20.27646678,2181.3,2180.6,5.5878485]
[1750619819167,10.0,2181.6,2180.7,0.04585439]
[1750619819366,18.051,2181.6,2180.8,4.58531292]
[1750619819685,10.21646678,2181.5,2180.9,0.7652]
[1750619819986,10.7348286,2181.5,2180.7,2.34288687]
[1750619820163,10.21646678,2181.3,2180.7,0.7652]
[1750619820367,0.06,2181.3,2180.6,2.4677423]
[1750619820569,0.06,2181.3,2180.6,5.14994356]
[1750619821088,0.06,2181.3,2180.6,5.20774356]
[1750619821290,0.06,2181.3,2180.6,9.79362521]
[1750619821587,0.06,2181.3,2180.6,2.96574356]
[1750619822171,0.06,2181.3,2180.6,5.20874356]
[1750619822368,0.06,2181.1,2180.6,0.2835423]
[1750619823305,0.55,2181.3,2180.6,0.2835423]
[1750619823306,0.83578376,2181.3,2180.7,0.0578]
[1750619823899,0.83578376,2181.3,2180.6,0.2257423]
[1750619824292,23.6026029,2181.2,2180.6,0.2257423]
[1750619824477,7.986,2181.2,2180.7,0.0578]
[1750619824682,7.986,2181.2,2180.7,0.8745]
[1750619825283,8.046,2181.2,2180.7,0.8745]
[1750619826904,15.0666029,2181.8,2180.7,8.02985719]
[1750619827207,10.0613,2181.7,2180.9,4.58523168]
[1750619827408,10.0613,2181.7,2181.0,5.58308128]
[1750619827967,0.06,2181.6,2180.8,0.8098]
[1750619828167,0.06,2181.6,2180.9,2.243]
[1750619829822,10.5223935,2181.7,2180.9,6.82813815]
[1750619830186,10.5223935,2181.7,2181.0,4.58502074]
[1750619830702,10.5223935,2181.7,2180.9,6.82816856]
[1750619830920,10.5223935,2181.7,2181.0,2.02063663]
[1750619831095,10.5223935,2181.7,2181.1,0.0578]
[1750619831419,0.06,2181.6,2181.1,0.0578]
[1750619831801,10.5223935,2181.7,2181.0,0.0578]
[1750619832110,10.5223935,2181.7,2181.1,0.0578]
[1750619834314,10.5823935,2181.7,2181.1,0.0578]
[1750619836524,0.06,2181.6,2180.8,0.8098]
[1750619836691,0.06,2181.6,2180.8,7.63824699]
[1750619837026,0.06,2181.6,2180.9,2.243]
[1750619837218,0.06,2181.6,2180.8,5.39524699]
[1750619837518,0.06,2181.6,2180.9,2.243]
[1750619839221,0.06,2181.6,2180.8,5.39524699]
[1750619839438,10.5823935,2181.7,2180.8,7.63824699]
[1750619840427,0.06,2181.6,2180.8,3.0528]
[1750619840596,0.06,2181.6,2180.8,4.63621311]
[1750619841232,0.06,2181.6,2180.9,0.0578]
[1750619842333,10.0,2181.4,2180.9,0.0578]
[1750619842505,10.2889168,2181.3,2180.8,0.0575]
[1750619842700,10.2889168,2181.3,2180.7,2.222]
[1750619842701,10.0,2181.2,2180.7,2.222]
[1750619843029,10.0,2181.2,2180.8,0.0575]
[1750619844342,10.0,2181.4,2180.9,0.0575]
[1750619844544,10.0,2181.4,2180.8,0.79080313]
[1750619844754,10.0,2181.4,2180.9,0.0575]
[1750619845252,10.0588,2181.4,2180.9,0.0575]
[1750619845557,10.0,2181.2,2180.8,0.84830313]
[1750619845852,10.0,2181.2,2180.9,0.0575]
[1750619846260,10.0,2181.2,2180.8,0.79080313]
[1750619846439,20.2301168,2181.2,2180.6,3.2646423]
[1750619846647,10.0,2181.2,2180.7,4.58568349]
[1750619847238,10.0,2181.2,2180.6,7.8504153]
[1750619847738,10.0,2181.2,2180.7,4.58568349]
[1750619847944,10.0,2181.2,2180.8,4.58547167]
[1750619848147,10.0,2181.2,2180.8,5.82906602]
[1750619848443,0.0613,2181.7,2181.1,4.58483123]
[1750619848608,0.0613,2181.7,2181.1,6.80683123]
[1750619849114,10.0613,2181.7,2181.1,6.80683123]
[1750619849511,0.0613,2181.7,2181.1,2.222]
[1750619849716,10.0613,2181.7,2181.1,2.222]
[1750619850048,0.0613,2181.7,2181.0,6.80693293]
[1750619850255,0.0613,2181.7,2181.1,4.58474935]
[1750619850816,0.0613,2181.7,2181.2,5.40971094]
[1750619851117,0.0613,2181.7,2181.2,5.40954713]
[1750619851453,10.2301168,2181.6,2181.2,0.0575]
[1750619853031,0.1201,2181.7,2180.8,13.78297838]
[1750619853032,10.2301168,2181.4,2180.9,2.222]
[1750619853233,10.2301168,2181.4,2180.9,2.2795]
[1750619853434,10.2889168,2181.4,2180.9,2.2795]
[1750619854142,8.0143,2181.7,2181.0,4.64243505]
[1750619854384,10.2301168,2181.5,2180.9,4.58514603]
[1750619854562,10.2301168,2181.5,2181.0,4.5850081]
[1750619855156,10.2889168,2181.5,2181.0,4.6425081]
[1750619855359,10.2889168,2181.5,2181.0,4.5850081]
[1750619855654,10.2889168,2181.5,2181.1,4.64233993]
[1750619855860,18.2444168,2181.7,2181.2,4.58462794]
[1750619856032,10.0,2181.6,2181.3,4.64189162]
[1750619856358,0.0613,2181.7,2181.3,4.58425594]
[1750619856562,0.0613,2181.7,2181.3,4.58442213]
[1750619856756,0.0613,2181.7,2181.5,4.58400091]
[1750619858063,0.0613,2181.7,2181.4,4.58409683]
[1750619858734,0.0613,2181.7,2181.5,4.58384121]
[1750619859048,0.0613,2181.7,2181.6,5.40299171]
[1750619861172,0.0613,2181.7,2181.6,5.46049171]
[1750619861380,0.0613,2181.7,2181.6,6.68713635]
[1750619861674,0.0613,2181.7,2181.6,2.10334464]
[1750619861887,0.0613,2181.7,2181.6,6.68713635]
[1750619862244,0.0613,2181.7,2181.6,6.73297137]
[1750619862670,0.0613,2181.7,2181.6,6.68713635]
[1750619863578,0.0613,2181.7,2181.6,6.73296521]
[1750619863949,0.0613,2181.7,2181.6,6.68713635]
[1750619864880,0.0613,2181.7,2181.6,6.73296457]
[1750619865087,0.0613,2181.7,2181.6,6.68713635]
[1750619865259,0.0613,2181.7,2181.6,14.62513635]
[1750619867656,0.0613,2181.7,2181.6,6.68713635]
[1750619867972,0.0613,2181.7,2181.3,5.12473129]
[1750619867973,0.0613,2181.7,2181.4,7.56296078]
[1750619868177,0.0613,2181.7,2181.4,10.9139]
[1750619868376,0.0613,2181.7,2181.5,4.58394198]
[1750619868991,0.0613,2181.7,2181.6,4.62962627]
[1750619869190,0.0613,2181.7,2181.6,5.38652627]
[1750619869362,0.0613,2181.7,2181.6,8.42228478]
[1750619869564,0.0613,2181.7,2181.6,8.37645022]
[1750619870087,0.0613,2181.7,2181.6,3.79265851]
[1750619870257,0.0613,2181.7,2181.6,15.49569171]
[1750619871179,0.0613,2181.7,2181.6,15.55319171]
[1750619871361,0.0613,2181.7,2181.5,7.931]
[1750619871560,0.0613,2181.7,2181.5,12.57240682]
[1750619872258,0.0613,2181.7,2181.5,7.9885]
[1750619872709,0.1232,2181.7,2181.2,7.59488767]
[1750619873015,0.0613,2181.7,2181.3,7.9914]
[1750619873481,0.0613,2181.7,2181.3,7.93]
[1750619874063,0.0613,2181.7,2181.5,0.0614]
[1750619874261,0.0613,2181.7,2181.5,4.64535144]
[1750619874463,0.0613,2181.7,2181.5,0.0614]
[1750619874988,0.0613,2181.7,2181.4,4.58411818]
[1750619874989,0.0613,2181.7,2181.3,12.51434269]
[1750619875298,0.0613,2181.7,2181.4,0.0614]
[1750619875464,0.0613,2181.7,2181.4,7.9894]
[1750619875664,0.0613,2181.7,2181.4,12.57359493]
[1750619875864,0.0613,2181.7,2181.4,4.64559493]
[1750619876184,0.0613,2181.7,2181.4,12.57259493]
[1750619876569,0.0613,2181.7,2181.5,4.6323811]
[1750619876774,0.0613,2181.7,2181.5,12.5593811]
[1750619877995,0.0613,2181.7,2181.6,14.58379171]
[1750619878298,0.0613,2181.7,2181.6,15.38539171]
[1750619878474,0.0613,2181.7,2181.6,5.38539171]
[1750619878676,0.0613,2181.7,2181.6,14.50801309]
[1750619881499,0.0613,2181.7,2181.6,14.50601309]
[1750619882430,17.922,2182.9,2182.5,4.58180091]
[1750619882431,0.0612,2182.9,2182.5,4.58180091]
[1750619882723,0.0612,2182.9,2182.5,7.921]
[1750619882881,0.0612,2182.9,2181.8,14.99490797]
[1750619882882,0.1231,2182.9,2182.0,4.58292336]
[1750619883082,0.1231,2182.9,2182.2,4.58250977]
[1750619883287,0.1231,2182.9,2182.3,4.58228918]
[1750619883517,0.5848439,2182.9,2182.4,7.92]
[1750619883714,0.5229439,2182.9,2182.4,7.92]
[1750619884018,0.0619,2182.8,2182.4,7.92]
[1750619886102,0.1231,2182.9,2182.4,7.9814]
[1750619886300,0.0612,2182.9,2182.5,4.58173509]
[1750619886504,0.0612,2182.9,2182.6,0.0614]
[1750619886711,0.0612,2183.1,2182.5,0.82911536]
[1750619886926,0.0612,2183.1,2182.6,0.0614]
[1750619887236,0.0612,2183.1,2182.6,4.64307733]
[1750619887436,0.0612,2183.1,2182.7,0.0614]
[1750619888208,0.0612,2183.1,2182.5,0.8447]
[1750619888404,0.0612,2183.1,2182.5,10.1764]
[1750619888903,0.0612,2183.1,2182.5,0.0614]
[1750619889750,0.0619,2183.0,2182.4,10.113]
[1750619889953,0.0619,2183.0,2182.4,14.69510284]
[1750619890115,0.0619,2183.0,2182.4,2.201]
[1750619890309,0.1231,2182.9,2182.3,4.64369411]
[1750619890517,0.1231,2182.9,2182.4,0.99961286]
[1750619890835,0.0612,2182.9,2182.5,0.0614]
[1750619891036,0.0612,2182.9,2182.4,5.62751984]
[1750619891231,0.0612,2182.9,2182.5,4.58173318]
[1750619891610,0.0612,2182.9,2182.6,0.0614]